Workbook

Sheet Instructions
C1: Instructions
B3: ;g ,Dly izksxzke esjs ije~ iwT; xq:nso Jh Jh 1008 oklqnso th egkjkt o esjs bZ"V izHkq t; ctjaxcyh o ikcwth egkjkt dks lefiZr gSaA esjs ekrk & firk o xq:tuksa ds vk'khokZn ls ;g izksxzke f'k{kd cU/kqvksa ds lkFk lHkh foHkkx ds dkfeZdksa dh lsok esa lknj izLrqr gSaA
C4: How to use this Programme
C5: If you have Hindi font problem, then first you should install Hindi font KRUTI DEV 010 in your computer.
C6: lcls igys vki jktLFkku ds lHkh 'kSf{kd osclkbZV ij ,Dly xq: ghjkyky tkV }kjk fufeZr vk;dj x.kuk ,Dly ,Iyhds'ku 2021&22 ds ;k izi=&10bZ gsrq viMsV otZu+ dks MkmuyksM djsasaA blds vykok vki Google ij Heeralal Jat fy[kdj lpZ djsaxs rks Hkh vkidks ist fey tk;sxkA tgka ls vki ;g izksxzke MkmuyksM dj ldrs gSaA mlds ckn ftrusa dkfeZdksa dh vk;dj x.kuk djuh gS] mruh gh ,Dly izksxzke 'khV dks muds uke ls vyx vyx Qkby esa Save dj ysosaA izR;sad dkfeZd ds fy, ds fy, ,d QkbZy dks mi;ksx esa ysosaA
B7: t; xq:nso | C7: vki bl izi=&10bZ ,Dly izksxzke ij dk;Z djus ls igys bUde VSDl foHkkx ds u;s :Yl o fu;e bUde VSDl foHkkx dh New website vFkok ys[kk foK vDVqcj 2020, tuojh 2021 dkss t:j i<+sA oSls bl ,Dly izksxzke esa iq.kZ lko/kkuh cjrh xbZ gSa] fQj Hkh foHkkx ds fu;e gh loksZijh o fljks/kk;Z gSaA
B8: Most Doable Work | D8: ije~ iwT; xq:nso
B9: vki bl ,Dly izksxzke ds 89(1) Form 'khV ij lko/kkuhiwoZd vuykWd lsy tks lQsn dyj esa gSa] dks Hkjuk ¼MkVk fQfyax½ gSaA vkxs dh 'khV vkWVksa tujsV gSaA ogk ij vkidks dqN ugh djuk gSaA flQZ A4 lkbZt esa fizUV fudkyuk gSa vkSj ist Hkh lsV fd;k gqvk gSaA
B11: This Programme Developed by: HEERALAL JAT
B12: Senior Teacher
B13: Mahatma Gandhi Government School (English Medium) BAR , PALI
B14: heeralaljatchandawal@gmail.com
B15: V./P. - Chandawal Nagar, Teh.- sojat city, Dist.- Pali (Raj) 306306
D16: This Sheet Information Video
C17: Watch the You Tube Video For More Information. | D17: https://youtu.be/1Xh5N3P-vu0
C20: https://www.youtube.com/playlist?list=PLmNJTudmvkgL-ZI7qFKfQ6oz6WTNnW31z
C22: You Tube Channel
C24: https://www.youtube.com/c/Heeralaljat

Sheet 89 (1) Form
B1: CALCULATION OF RELIEF UNDER SECTION 89 (1)
B3: Name : | D3: Heeralal jat | I3: Designation :- | K3: Sr Teacher
B4: Address : | D4: Chandawal Nagar, Sojat , PALI (RAJ)
B5: PAN : | D5: ABCDE1234F | I5: Status | K5: Indian Resident
B7: FINANCIAL YEAR- 2012-13 | M7: INCOME ( Rs )
B8: Enter net taxable income for 2012-13 (as per ITR/Form-16) ¼'kq) dj ;ksX; vk; nl ds xq.kkad esa ½ | M8: 0
B9: Enter arrears relates to 2012-13 ¼bl l= 2012&13 dh feyus okyh ,fj;j jkf'k ½ | M9: 0
B10: FINANCIAL YEAR- 2013-14 | M10: INCOME ( Rs )
B11: Enter net taxable income for 2013-14 (as per ITR/Form-16) ¼'kq) dj ;ksX; vk; nl ds xq.kkad esa ½ | M11: 0
B12: Enter arrears relates to 2013-14 ¼bl l= 2013&14 dh feyus okyh ,fj;j jkf'k ½ | M12: 0
B13: FINANCIAL YEAR- 2014-15 | M13: INCOME ( Rs )
B14: Enter net taxable income for 2014-15 (as per ITR/Form-16) ¼'kq) dj ;ksX; vk; nl ds xq.kkad esa ½ | M14: 0
B15: Enter arrears relates to 2014-15 ¼bl l= 2014&15 dh feyus okyh ,fj;j jkf'k ½ | M15: 0
B16: FINANCIAL YEAR- 2015-16 | M16: INCOME ( Rs )
B17: Enter net taxable income for 2015-16 (as per ITR/Form-16) ¼'kq) dj ;ksX; vk; nl ds xq.kkad esa ½ | M17: 0
B18: Enter arrears relates to 2015-16 ¼bl l= 2015&16 dh feyus okyh ,fj;j jkf'k ½ | M18: 0
B19: FINANCIAL YEAR- 2016-17 | M19: INCOME ( Rs )
B20: Enter net taxable income for 2016-17 (as per ITR/Form-16) ¼'kq) dj ;ksX; vk; nl ds xq.kkad esa ½ | M20: 0 | T20: fiNys lkyksa dh ,UV~zh;k eSU;qyh VkbZi djds lko/kkuh ls fy[ksaA
B21: Enter arrears relates to 2016-17 ¼bl l= 2016&17 dh feyus okyh ,fj;j jkf'k ½ | M21: 0
B22: FINANCIAL YEAR- 2017-18 | M22: INCOME ( Rs )
B23: Enter net taxable income for 2017-18 (as per ITR/Form-16) ¼'kq) dj ;ksX; vk; nl ds xq.kkad esa ½ | M23: 0
B24: Enter arrears relates to 2017-18 ¼bl l= 2017&18 dh feyus okyh ,fj;j jkf'k ½ | M24: 0
B25: FINANCIAL YEAR- 2018-19 | M25: INCOME ( Rs )
B26: Enter net taxable income for 2018-19 (as per ITR/Form-16) ¼'kq) dj ;ksX; vk; nl ds xq.kkad esa ½ | M26: 0
B27: Enter arrears relates to 2018-19 ¼bl l= 2018&19 dh feyus okyh ,fj;j jkf'k ½ | M27: 0
B28: FINANCIAL YEAR- 2019-20 | M28: INCOME ( Rs )
B29: Enter net taxable income for 2019-20 (as per ITR/Form-16) ¼'kq) dj ;ksX; vk; nl ds xq.kkad esa ½ | M29: 450000
B30: Enter arrears relates to 2019-20 ¼bl l= 2019&20 dh feyus okyh ,fj;j jkf'k ½ | M30: 27000
B31: FINANCIAL YEAR- 2020-21 | M31: INCOME ( Rs )
B32: Enter net taxable income for 2020-21 (as per ITR/Form-16) ¼'kq) dj ;ksX; vk; nl ds xq.kkad esa ½ | M32: 550000
B33: Enter arrears relates to 2020-21 ¼bl l= 2020&21 dh feyus okyh ,fj;j jkf'k ½ | M33: 25000
B34: FINANCIAL YEAR- 2021-22 | M34: INCOME ( Rs )
B35: Enter net taxable income for 2021-22 including entire arrears received (as per ITR/Form-16) ¼'kq) dj ;ksX; vk; nl ds xq.kkad esa ½ | M35: 680896

Sheet form10E
B1: FORM NO. 10 E (See rule 21AA)
B2: Form for furnishing particulars of income undr scetion 192(2A) for year ending 31st March 2022 for claiming relief under section 89(1) by a Government servant or an employee in a company, co-operative society, local authority, university, institution, association or body.
B3: Name : | D3: =UPPER(IF('89 (1) Form'!D3="","",'89 (1) Form'!D3)) -> HEERALAL JAT | I3: Designation :- | K3: =IF('89 (1) Form'!K3="","",'89 (1) Form'!K3) -> Sr Teacher
B4: Address : | D4: =IF('89 (1) Form'!D4="","",'89 (1) Form'!D4) -> Chandawal Nagar, Sojat , PALI (RAJ)
B5: PAN : | D5: =UPPER(IF('89 (1) Form'!D5="","",'89 (1) Form'!D5)) -> ABCDE1234F | I5: Status | K5: =IF(AND('89 (1) Form'!K5=""),"",UPPER('89 (1) Form'!K5)) -> INDIAN RESIDENT
B6: Particulars of Income referred to in rule 21A of the Income tax Rules, 1962, during the previous year relevant to assessment year 2022-23
B7: 1. (a) Salary received in arrears or in advance during 2021-22 in accordance with the provision of sub-rule (2) of rule 21A | M7: ='89 (1) Form'!M9+'89 (1) Form'!M12+'89 (1) Form'!M15+'89 (1) Form'!M18+'89 (1) Form'!M21+'89 (1) Form'!M24+'89 (1) Form'!M27+'89 (1) Form'!M30+'89 (1) Form'!M33 -> 52000
B8: (b) Payment in the nature of gratuity in respect of past services, extending over a period of not less than 5 years in accordance with the provisions of sub-rule (3) of rule 21A | M8: Not applicable
B9: (c) Payment in the nature of compensation from the employer or former employer at or in connection with termination of employment after continuous service of not less than 3 years in accordance with the provisions of sub-rule (4) of rule 21A | M9: Not applicable
B10: (d) Payment in commutation of pension in accordance with the provisions of sub-rule (5) of rule 21A | M10: Not applicable
B11: 2. Detailed particulars of payments referred to above may be given in Annexure I, II, IIA, III or IV as the case may be | M11: Annexure- I
B12: Verification
B13: I | C13: =UPPER(IF('89 (1) Form'!D3="","",'89 (1) Form'!D3)) -> HEERALAL JAT | G13: do hereby declare that what is stated above is true to the best of my
B14: knowledge and belief.
B15: Verified today, the | E15: =TODAY() -> 2021-12-26
B16: Place:
B17: Date: | L17: Signature of the employee
B19: ANNEXURE - I
F20: ARREARS OR ADVANCE SALARY
B21: 1. Total net taxable Income excluding Salary received in Arrears or advance | M21: =M23-M22 -> 628896
B22: 2. salary received in arrears or advance | M22: =M7 -> 52000
B23: 3. Total Income (as increased by salary received in arrears or advance) (Add item 1 and item 2) | M23: ='89 (1) Form'!M35 -> 680896 | AA23: =ROUND(IF(M23<=250000,0,IF(M23<=500000,(M23-250000)*0.05,IF(M23<=1000000,12500+(M23-500000)*0.2,IF(M23>1000000,112500+(M23-1000000)*0.3,"0")))),0) -> 48679 | AB23: =IF(AND(M23=0),0,ROUND(IF(AND(M23<=500000),AA23-12500,AA23),0)) -> 48679 | AC23: =ROUND(IF(AND(AB23<=0),0,AB23),0) -> 48679 | AD23: =ROUND(AC23*4%,0) -> 1947
B24: 4. Tax on total income (as per item 3) | M24: =AC23+AD23 -> 50626 | AA24: =ROUND(IF(M21<=250000,0,IF(M21<=500000,(M21-250000)*0.05,IF(M21<=1000000,12500+(M21-500000)*0.2,IF(M21>1000000,112500+(M21-1000000)*0.3,"0")))),0) -> 38279 | AB24: =IF(M21<500001,AA24-MIN(AA24,12500),AA24) -> 38279 | AC24: =ROUND(IF(AND(AB24<=0),0,AB24),0) -> 38279 | AD24: =ROUND(AC24*4%,0) -> 1531
B25: 5. Tax on total income (as per item 1) | M25: =AC24+AD24 -> 39810
B26: 6. Tax on salary received in arrears or advance (Difference of item 4 and item 5) | M26: =M24-M25 -> 10816
B27: 7. Tax computed in accordance with Table "A" (Brought from column 7 of Table "A") | M27: =N42 -> 5200
B28: 8. Relief under section 89 (1) (Indicate the difference between the amounts mentioned against items 6 and 7) | M28: =M26-M27 -> 5616
B30: TABLE "A" (See item 7 of Annexure I)
B31: Previous Year(s) | D31: Total Net Taxable income of the relevant previous year | F31: salary received in arrears or advance relating to the relevant previous year as mentioned in col. (1) | H31: Total income (as increased by salry received in arrears or advance) or the relevant previous year mentioned in col. (1) (Add col. 2 and 3) | J31: Tax on total income (as per col. 2) | L31: Tax on total income (as per col. 4) | N31: Difference in tax (Amount under col. 6 minus amount under col. 5)
B32: 1 | D32: 2 | F32: 3 | H32: 4 | J32: 5 | L32: 6 | N32: 7
B33: 2012-13 | D33: =ROUND('89 (1) Form'!M8, -1) -> 0 | F33: =('89 (1) Form'!M9) -> 0 | H33: =D33+F33 -> 0 | J33: =IF($D33>1000000, 130000+($D33-1000000)*0.3, IF($D33>500000, 30000+($D33-500000)*0.2, IF($D33>200000, ($D33-200000)*0.1, 0)))+ROUND(IF($D33>1000000, 130000+($D33-1000000)*0.3, IF($D33>500000, 30000+($D33-500000)*0.2, IF($D33>200000, ($D33-200000)*0.1, 0)))*0.03,0) -> 0 | L33: =IF($H33>1000000, 130000+($H33-1000000)*0.3, IF($H33>500000, 30000+($H33-500000)*0.2, IF($H33>200000, ($H33-200000)*0.1, 0)))+ROUND(IF($H33>1000000, 130000+($H33-1000000)*0.3, IF($H33>500000, 30000+($H33-500000)*0.2, IF($H33>200000, ($H33-200000)*0.1, 0)))*0.03,0) -> 0 | N33: =L33-J33 -> 0
B34: 2013-14 | D34: =ROUND('89 (1) Form'!M11, -1) -> 0 | F34: ='89 (1) Form'!M12 -> 0 | H34: =D34+F34 -> 0 | J34: =AL34 -> 0 | L34: =AQ34 -> 0 | N34: =L34-J34 -> 0 | AH34: 13-14 | AI34: =IF($D34>1000000, 130000+($D34-1000000)*0.3, IF($D34>500000, 30000+($D34-500000)*0.2, IF($D34>200000, ($D34-200000)*0.1, 0))) -> 0 | AJ34: =IF(D34<350001,AI34-MIN(AI34,2000),AI34) -> 0 | AK34: =ROUND(AJ34*0.03, 0) -> 0 | AL34: =AJ34+AK34 -> 0 | AN34: =IF($H34>1000000, 130000+($H34-1000000)*0.3, IF($H34>500000, 30000+($H34-500000)*0.2, IF($H34>200000, ($H34-200000)*0.1, 0))) -> 0 | AO34: =IF(H34<500001,AN34-MIN(AN34,2000),AN34) -> 0 | AP34: =ROUND(AO34*0.03, 0) -> 0 | AQ34: =AO34+AP34 -> 0
B35: 2014-15 | D35: =ROUND('89 (1) Form'!M14, -1) -> 0 | F35: ='89 (1) Form'!M15 -> 0 | H35: 0 | J35: =AL35 -> 0 | L35: =AQ35 -> 0 | N35: =L35-J35 -> 0 | AH35: 14-15 | AI35: =IF($D35>1000000, 125000+($D35-1000000)*0.3, IF($D35>500000, 25000+($D35-500000)*0.2, IF($D35>250000, ($D35-250000)*0.1, 0))) -> 0 | AJ35: =IF(D35<350001,AI35-MIN(AI35,2000),AI35) -> 0 | AK35: =ROUND(AJ35*0.03, 0) -> 0 | AL35: 0 | AN35: =IF(H35>1000000, 125000+(H35-1000000)*0.3, IF(H35>500000, 25000+(H35-500000)*0.2, IF(H35>250000, (H35-250000)*0.1, 0))) -> 0 | AO35: =IF(H35<500001,AN35-MIN(AN35,2000),AN35) -> 0 | AP35: =ROUND(AO35*0.03, 0) -> 0 | AQ35: 0
B36: 2015-16 | D36: =ROUND('89 (1) Form'!M17, -1) -> 0 | F36: ='89 (1) Form'!M18 -> 0 | H36: 0 | J36: 0 | L36: 0 | N36: 0 | AH36: 15-16 | AI36: =IF($D36>1000000, 125000+($D36-1000000)*0.3, IF($D36>500000, 25000+($D36-500000)*0.2, IF($D36>250000, ($D36-250000)*0.1, 0))) -> 0 | AJ36: =IF(D36<500001,AI36-MIN(AI36,2000),AI36) -> 0 | AK36: =ROUND(AJ36*0.03, 0) -> 0 | AL36: 0 | AN36: =IF(H36>1000000, 125000+(H36-1000000)*0.3, IF(H36>500000, 25000+(H36-500000)*0.2, IF(H36>250000, (H36-250000)*0.1, 0))) -> 0 | AO36: =IF(H36<500001,AN36-MIN(AN36,2000),AN36) -> 0 | AP36: =ROUND(AO36*0.03, 0) -> 0 | AQ36: 0
B37: 2016-17 | D37: =ROUND('89 (1) Form'!M20, -1) -> 0 | F37: ='89 (1) Form'!M21 -> 0 | H37: 0 | J37: 0 | L37: 0 | N37: 0 | AH37: 16-17 | AI37: =IF($D37>1000000, 125000+($D37-1000000)*0.3, IF($D37>500000, 25000+($D37-500000)*0.2, IF($D37>250000, ($D37-250000)*0.1, 0))) -> 0 | AJ37: =IF(D37<500001,AI37-MIN(AI37,5000),AI37) -> 0 | AK37: =ROUND(AJ37*0.03, 0) -> 0 | AL37: 0 | AN37: =IF(H37>1000000, 125000+(H37-1000000)*0.3, IF(H37>500000, 25000+(H37-500000)*0.2, IF(H37>250000, (H37-250000)*0.1, 0))) -> 0 | AO37: =IF(H37<500001,AN37-MIN(AN37,5000),AN37) -> 0 | AP37: =ROUND(AO37*0.03, 0) -> 0 | AQ37: 0
B38: 2017-18 | D38: =ROUND('89 (1) Form'!M23, -1) -> 0 | F38: ='89 (1) Form'!M24 -> 0 | H38: =D38+F38 -> 0 | J38: 0 | L38: 0 | N38: 0 | AH38: 17-18 | AI38: =IF($D38>1000000, 112500+($D38-1000000)*0.3, IF($D38>500000, 12500+($D38-500000)*0.2, IF($D38>250000, ($D38-250000)*0.05, 0))) -> 0 | AJ38: =IF(D38<350001,AI38-MIN(AI38,2500),AI38) -> 0 | AK38: =ROUND(AJ38*0.03, 0) -> 0 | AL38: 0 | AN38: =IF(H38>1000000, 112500+(H38-1000000)*0.3, IF(H38>500000, 12500+(H38-500000)*0.2, IF(H38>250000, (H38-250000)*0.05, 0))) -> 0 | AO38: =IF(H38<350001,AN38-MIN(AN38,2500),AN38) -> 0 | AP38: =ROUND(AO38*0.03, 0) -> 0 | AQ38: 0
B39: 2018-19 | D39: =ROUND('89 (1) Form'!M26, -1) -> 0 | F39: ='89 (1) Form'!M27 -> 0 | H39: 0 | J39: =AL39 -> 0 | L39: 0 | N39: 0 | AH39: 18-19 | AI39: =IF($D39>1000000, 112500+($D39-1000000)*0.3, IF($D39>500000, 12500+($D39-500000)*0.2, IF($D39>250000, ($D39-250000)*0.05, 0))) -> 0 | AJ39: =IF(D39<350001,AI39-MIN(AI39,2500),AI39) -> 0 | AK39: =ROUND(AJ39*0.04, 0) -> 0 | AL39: 0 | AN39: =IF(H39>1000000, 112500+(H39-1000000)*0.3, IF(H39>500000, 12500+(H39-500000)*0.2, IF(H39>250000, (H39-250000)*0.05, 0))) -> 0 | AO39: =IF(H39<350001,AN39-MIN(AN39,2500),AN39) -> 0 | AP39: =ROUND(AO39*0.04, 0) -> 0 | AQ39: 0
B40: 2019-20 | D40: =ROUND('89 (1) Form'!M29, -1) -> 450000 | F40: ='89 (1) Form'!M30 -> 27000 | H40: 477000 | J40: 0 | L40: 0 | N40: 0 | AH40: 19-20 | AI40: =IF($D40>1000000, 112500+($D40-1000000)*0.3, IF($D40>500000, 12500+($D40-500000)*0.2, IF($D40>250000, ($D40-250000)*0.05, 0))) -> 10000 | AJ40: =IF(D40<500001,AI40-MIN(AI40,12500),AI40) -> 0 | AK40: =ROUND(AJ40*0.04, 0) -> 0 | AL40: 0 | AN40: =IF(H40>1000000, 112500+(H40-1000000)*0.3, IF(H40>500000, 12500+(H40-500000)*0.2, IF(H40>250000, (H40-250000)*0.05, 0))) -> 11350 | AO40: =IF(H40<500001,AN40-MIN(AN40,12500),AN40) -> 0 | AP40: =ROUND(AO40*0.04, 0) -> 0 | AQ40: 0
B41: 2020-21 | D41: =ROUND('89 (1) Form'!M32, -1) -> 550000 | F41: ='89 (1) Form'!M33 -> 25000 | H41: =D41+F41 -> 575000 | J41: =AL41 -> 23400 | L41: =AQ41 -> 28600 | N41: =L41-J41 -> 5200 | AH41: 20-21 | AI41: =IF($D41>1000000, 112500+($D41-1000000)*0.3, IF($D41>500000, 12500+($D41-500000)*0.2, IF($D41>250000, ($D41-250000)*0.05, 0))) -> 22500 | AJ41: =IF(D41<500001,AI41-MIN(AI41,12500),AI41) -> 22500 | AK41: =ROUND(AJ41*0.04, 0) -> 900 | AL41: =AJ41+AK41 -> 23400 | AN41: =IF(H41>1000000, 112500+(H41-1000000)*0.3, IF(H41>500000, 12500+(H41-500000)*0.2, IF(H41>250000, (H41-250000)*0.05, 0))) -> 27500 | AO41: =IF(H41<500001,AN41-MIN(AN41,12500),AN41) -> 27500 | AP41: =ROUND(AO41*0.04, 0) -> 1100 | AQ41: 28600
B42: TOTAL | N42: =SUM(N33:O41) -> 5200
